Workbook

Sheet S1
A2: 11.ЛКМ и вентиляция
A3: Статус | B3: Наименование | C3: Тип | D3: Артикул, марка | E3: Изготовитель | F3: Назначение/ примечание | G3: Ед. изм. | H3: Кол-во на 1 зак. План | I3: Кол-во к закупке | J3: Наименование поставщика | K3: Курс р./ [валюта] | L3: Цена, [валюта]/ ед. | M3: Цена, руб./ ед. | N3: Стоимость, руб. | O3: Оплачено | P3: К оплате | Q3: № и дата счета | R3: Дата оплаты/ срок поставки | S3: Плановая дата поставки | T3: Требуемая дата на складе | U3: Склад дата | V3: Кто заказывает | W3: январь | X3: февраль | Y3: март | Z3: апрель | AA3: май | AB3: июнь | AC3: июль | AD3: август | AE3: сентябрь | AF3: октябрь | AG3: ноябрь | AH3: декабрь | AI3: Служебная колонка
A4: 1 | B4: 2 | C4: 3 | D4: 4 | E4: 5 | F4: 6 | G4: 7 | H4: 8 | I4: 9 | J4: 10 | K4: 11 | L4: 12 | M4: 13 | N4: 14 | O4: 15 | P4: 16 | Q4: 17 | R4: 18 | S4: 19 | T4: 20 | U4: 21 | V4: 22 | W4: 23 | X4: 24 | Y4: 25 | Z4: 26 | AA4: 27 | AB4: 28 | AC4: 29 | AD4: 30 | AE4: 31 | AF4: 32 | AG4: 33 | AH4: 34
B5: Изоляция
B6: ROCKWOOL® SeaRox MA 740 ALU 50x1000x5000 | G6: уп. | H6: 12 | I6: 12 | J6: Талан | M6: 5000 | N6: =M6*I6 -> 60000 | P6: =N6-O6 -> 60000 | W6: =P6 -> 60000
B7: ROCKWOOL® SeaRox SL 740 ALU 50x600x1000 - 8 шт. | G7: уп. | H7: 30 | I7: 15 | J7: Талан | M7: 2528.64 | N7: 37929.6 | P7: =N7-O7 -> 37929.6 | W7: 37929.6
B8: ROCKWOOL® SeaRox SL 620 ALU 30x600x1000 - 8 шт. | G8: уп. | H8: 19 | I8: 20 | J8: Талан | M8: 2528.64 | N8: 50572.8 | P8: 50572.8 | W8: 50572.8
B9: Доставка изоляции RockWool | G9: шт. | H9: 1 | I9: 1 | J9: Талан | M9: 5000 | N9: 5000 | P9: 5000 | W9: 5000
B10: Жидкая изоляция "ТЕПЛОТОР СТАНДАРТ" | G10: л. | H10: 340 | I10: 340 | J10: РиК | M10: =8380.1/20 -> 419.005 | N10: 142461.7 | P10: 142461.7 | W10: 142461.7
B11: цилиндры наливные Rockwool RW 100 32х30 к/ф | G11: шт. | H11: 1 | I11: 0 | J11: Талан | M11: 138.82 | N11: 0 | P11: 0 | W11: 0
B12: цилиндры наливные Rockwool RW 100 48х30 к/ф | G12: м | H12: 1 | I12: 0 | J12: Талан | M12: 187.82 | N12: 0 | P12: 0 | W12: 0
B13: Скотч алюминиевый широкий - 75 мм. | G13: м | H13: 96 | I13: 96 | J13: Гелеон | M13: 288 | N13: 27648 | P13: 27648 | W13: 27648
B14: Гвоздь изоляционный приварной 3*85 стальной омедненный BIMETAL | G14: л. | H14: 4000 | I14: 4000 | J14: СтилТрейд/НЕВАДА | M14: 14.8 | N14: 59200 | O14: =N14 -> 59200 | P14: 0 | Q14: №2 от 10.01.2022 | W14: 0
B15: Шайба Стальная диаметром 38 мм | G15: шт. | H15: 4000 | I15: 4000 | J15: СтилТрейд | M15: 12 | N15: 48000 | O15: =N15 -> 48000 | P15: 0 | Q15: №2 от 10.01.2022 | W15: 0
B16: Выполнение работ по монтажу изоляции | G16: шт. | H16: 1 | I16: 1 | J16: НССЗ | X16: =P16 -> 0
B17: Окраска
B18: Penguard HB, Grey | G18: л. | H18: 120 | I18: 120 | J18: Мультиколор | M18: =874.8 -> 874.8 | N18: =M18*I18 -> 104976 | O18: =N18 -> 104976 | P18: =N18-O18 -> 0 | Q18: №МС0155 от 24.01.2022 | W18: =N18-O18 -> 0
B19: Jotamastic 90 RAL 7046 comp A, 14.8л comp B, 4.4л | G19: л. | H19: 37.2 | I19: 37.2 | J19: Мультиколор | M19: =928.8 -> 928.8 | N19: 34551.36 | O19: =N19 -> 34551.36 | P19: 0 | Q19: №МС0155 от 24.01.2022 | W19: =P19 -> 0
B20: Jotun Thinner №7 | G20: л. | H20: 10 | I20: 0 | J20: Мультиколор | M20: =7472.51*1.2/10 -> 896.7012 | N20: 0 | P20: 0 | AB20: =P20 -> 0
B21: Jotun Thinner №10 | G21: л. | H21: 20 | I21: 20 | J21: Мультиколор | M21: 432 | N21: 8640 | O21: 8640 | P21: 0 | Q21: №МС0155 от 24.01.2022 | W21: =P21 -> 0
B22: Jotun Thinner №17 | G22: л. | H22: 60 | I22: 40 | J22: Мультиколор | M22: 555 | N22: 22200 | O22: 22200 | P22: 0 | Q22: №МС0155 от 24.01.2022 | W22: =N22-O22 -> 0
B23: Hardtop НВ RAL 9010 (белый) | G23: л. | H23: 55.26 | I23: 55.26 | J23: Мультиколор | M23: =1814.4 -> 1814.4 | N23: 100263.744 | O23: 100263.744 | P23: 0 | Q23: №МС0155 от 24.01.2022 | W23: =N23-O23 -> 0
B24: Hardtop НВ RAL 9011 (черный) | G24: л. | H24: 1 | I24: 4 | J24: Мультиколор | M24: =(60579.36+15984)*1.2/76.64 -> 1198.8 | N24: 4795.2 | P24: 4795.2 | W24: =N24-O24 -> 4795.2
B25: Hardtop НВ RAL 6021 (фисташковый) | G25: л. | H25: 38.4 | I25: 38.4 | J25: Мультиколор | M25: =1652.4 -> 1652.4 | N25: 63452.16 | O25: 63452.16 | P25: 0 | Q25: №МС0155 от 24.01.2022 | W25: =N25-O25 -> 0
B26: Hardtop НВ RAL 6026 (темно-зеленый) | G26: л. | H26: 38.4 | I26: 30.255 | J26: Мультиколор | M26: 1800 | N26: 54459 | O26: 54459 | P26: 0 | Q26: №МС0155 от 24.01.2022 | W26: =P26 -> 0
B27: Safeguard Uni | G27: л. | H27: 18 | I27: 18 | J27: Мультиколор | M27: 1004.4 | N27: 18079.2 | P27: 18079.2 | Y27: =P27 -> 18079.2
B28: AF SeaForce 90 Black | G28: л. | H28: 20 | I28: 40 | J28: Мультиколор | M28: 3553.2 | N28: 142128 | P28: 142128 | Y28: =P28 -> 142128
B29: Окраска и защита
B30: Корщетка-венчик 20/25 мм | G30: шт. | H30: 340 | I30: 250 | J30: Инфо-тулс | M30: 59 | N30: =M30*I30 -> 14750 | O30: =N30 -> 14750 | P30: 0 | Q30: №185 от 21.12.21 | W30: =P30 -> 0
B31: Растворитель 646 | G31: л. | H31: 350 | I31: 350 | J31: ООО "Эспада" | M31: 91 | N31: 31850 | O31: =N31 -> 31850 | P31: 0 | Q31: №2122153100012000000000337/25 от 24.01.2022 | W31: =P31 -> 0
B32: Воронка фильтрующая 190 мм | G32: шт. | H32: 135 | I32: 135 | J32: Технопродукт Автомотив | M32: 3.41 | N32: 460.35 | O32: =N32 -> 460.35 | P32: 0 | Q32: №3647 от 20.12.21 | W32: 0
B33: Гофрокартон 2-х слойный | G33: пог.м | H33: 150 | I33: 150 | J33: Картон Плюс | M33: =4976.1/150 -> 33.174 | N33: 4976.1 | P33: 4976.1 | W33: 4976.1
B34: Перчатки нитриловые RoxelPro RoxOne, Чёрные, размер L | G34: уп. | H34: 10 | I34: 10 | J34: Колор-Эксперт | M34: 2084.11 | N34: 20841.1 | O34: =N34 -> 20841.1 | P34: 0 | Q34: №3647 от 20.12.21 | W34: 0
B35: Емкость смесительная 1550 мл зм | G35: шт. | H35: 10 | I35: 10 | J35: Технопродукт Автомотив | M35: 26.4 | N35: 264 | O35: =N35 -> 264 | P35: 0 | Q35: №3647 от 20.12.21 | W35: 0
B36: Кисть флейц. 1" Стандарт | G36: шт. | H36: 0 | I36: 0 | J36: Максидом | M36: =70 -> 70 | N36: 0 | P36: 0 | W36: 0
B37: Кисть флейц. 2" Стандарт | G37: шт. | H37: 12 | I37: 12 | J37: Максидом | M37: =1049.28/I37 -> 87.44 | N37: 1049.28 | P37: 1049.28 | W37: 1049.28
B38: Лак акриловый матовый 2К Мобихел 47056422 (1 л.) | G38: л. | H38: 8 | I38: 8 | J38: Колор-Эксперт | M38: 1712.77 | N38: 13702.16 | O38: =N38 -> 13702.16 | P38: 0 | Q38: №3647 от 20.12.21 | W38: 0
B39: Отвердитель 2К 8800 Мобихел (0,5л) | G39: шт. | H39: 8 | I39: 8 | J39: Колор-Эксперт | M39: 554.46 | N39: 4435.68 | O39: 4435.68 | P39: 0 | Q39: №3647 от 20.12.21 | W39: 0
B40: Разбавитель 2К 2100 Мобихел (0,5л) | G40: шт. | H40: 2 | I40: 2 | J40: Колор-Эксперт | M40: 454.81 | N40: 909.62 | O40: 909.62 | P40: 0 | Q40: №3647 от 20.12.21 | W40: 0
B41: Лента малярная 48 мм*40м RoxelPor коричневая | G41: шт. | H41: 140 | I41: 140 | J41: Технопродукт Автомотив/ГрэйнХаус | M41: 127.76 | N41: 17886.4 | O41: 17886.4 | P41: 0 | Q41: №3647 от 20.12.21 | W41: 0
B42: Лента маскирующая 471 6мм | G42: шт. | H42: 6 | I42: 6 | J42: Технопродукт Автомотив/ГрэйнХаус | M42: 555.31 | N42: 3331.86 | O42: =N42 -> 3331.86 | P42: 0 | Q42: №3647 от 20.12.21 | W42: 0
B43: Лента стрейч 0,45*20 мкм 300м | G43: шт. | H43: 4 | I43: 2 | J43: Технопродукт Автомотив/ГрэйнХаус | M43: =1484.52/2 -> 742.26 | N43: 1484.52 | P43: 1484.52 | W43: 1484.52
B44: Патрон - фильтр А от органических паров 6051 | G44: шт. | H44: 60 | I44: 60 | J44: Технопродукт Автомотив/ГрэйнХаус | M44: 481.23 | N44: 28873.8 | O44: =N44 -> 28873.8 | P44: 0 | Q44: №3647 от 20.12.21 | W44: 0
B45: Держатель для предфильтра 5911 | G45: шт. | H45: 6 | I45: 0 | J45: Технопродукт Автомотив/ГрэйнХаус | M45: 65 | N45: 0 | P45: 0 | W45: 0
B46: Пред-фильтр от пыли | G46: шт. | H46: 60 | I46: 60 | J46: Технопродукт Автомотив/ГрэйнХаус | M46: 114.26 | N46: 6855.6 | P46: 6855.6 | W46: 6855.6
B47: Перчатки резиновые КЩС Тип 1 L-U-03 (аналог SF-S-06) р. L | G47: шт. | H47: 50 | I47: 50 | J47: ТД Форт | M47: 81.7 | N47: 4085 | P47: 4085 | W47: 4085
B48: Плёнка защитная для полных масок 6000 | G48: шт. | H48: 15 | I48: 0 | J48: Технопродукт Автомотив | M48: 78.2 | N48: 0 | P48: 0 | W48: 0
B49: Ролик 100мм | G49: шт. | H49: 40 | I49: 40 | J49: Максидом | M49: =1451.2/I49 -> 36.28 | N49: 1451.2 | P49: 1451.2 | W49: 1451.2
B50: Валик Велюр 100 мм | G50: шт. | H50: 4 | I50: 0 | J50: Максидом | M50: =97 -> 97 | N50: 0 | P50: 0 | W50: 0
B51: Скотч брайт mirlon Р320, (10,5 м.кв) | G51: шт. | H51: 60 | I51: 60 | J51: Технопродукт Автомотив | M51: 85.17 | N51: 5110.2 | O51: =N51 -> 5110.2 | P51: 0 | Q51: №3647 от 20.12.21 | W51: 0
B52: Скотч упаковочный 50/100мм | G52: шт. | H52: 10 | I52: 10 | J52: ТД Форт | M52: 0 | N52: 0 | P52: 0 | W52: 0
B53: Плёнка для покраски 4х150м 9мк | G53: рул | H53: 6 | I53: 6 | J53: Империя цвета | M53: 2554.25 | N53: 15325.5 | O53: =N53 -> 15325.5 | P53: 0 | Q53: №3647 от 20.12.21 | W53: 0
B54: Пена монтажная putech проф. 850 мл | G54: шт. | H54: 6 | I54: 0 | J54: Стройопторг | M54: =1836.12/6 -> 306.02 | N54: 0 | P54: 0 | W54: 0
B55: Очиститель монтажной пены | G55: шт. | H55: 1 | I55: 0 | M55: 166.46 | N55: 0 | P55: 0 | W55: 0
B56: круг шлифовальный ф150 Hanko(Р=240) | G56: шт. | H56: 500 | I56: 500 | J56: Технопродукт Автомотив/ГрэйнХаус | M56: 17.72 | N56: 8860 | O56: =N56 -> 8860 | P56: 0 | Q56: №83 от 18.01.2022 | W56: 0
B57: круг шлифовальный ф125Hanko(Р=40) | G57: шт. | H57: 600 | I57: 600 | J57: Технопродукт Автомотив/ГрэйнХаус | M57: 20.38 | N57: 12228 | O57: =N57 -> 12228 | P57: 0 | Q57: №83 от 18.01.2022 | W57: 0
B58: круг шлифовальный ф150 Hanko(Р=320) | G58: шт. | H58: 100 | I58: 100 | J58: Технопродукт Автомотив/ГрэйнХаус | M58: 16.43 | N58: 1643 | P58: 1643 | W58: 1643
B59: подошва для УШМ | G59: шт. | H59: 12 | I59: 12 | M59: 212.4 | N59: 2548.8 | P59: 2548.8 | W59: 2548.8
B60: Полумаска | G60: шт. | H60: 2 | I60: 1 | M60: 2551.42 | N60: 2551.42 | O60: =N60 -> 2551.42 | P60: 0 | Q60: №3647 от 20.12.21 | W60: 0
B61: Комбинезон малярный JPC95g (2 шт. - М, 2 шт. -XXL) | G61: шт. | H61: 6 | I61: 3 | J61: Технопродукт Автомотив/ГрэйнХаус | M61: 803.16 | N61: 2409.48 | P61: 2409.48 | W61: 2409.48
B62: Комбинезон малярный JPC95g ( М) | G62: шт. | H62: 5 | I62: 5 | J62: Технопродукт Автомотив/ГрэйнХаус | M62: 742.83 | N62: 3714.15 | O62: =N62 -> 3714.15 | P62: 0 | Q62: №3647 от 20.12.21 | W62: 0
B63: Плёнка п/э техническая 100 мкм | G63: м пог | H63: 200 | I63: 200 | J63: ЗАО "Пластекс" | M63: =56.72 -> 56.72 | N63: 11344 | P63: 11344 | W63: 11344
B64: Плёнка п/э техническая защитная самоклеющаяся | G64: кпл | H64: 1 | I64: 0 | M64: 21 | N64: 0 | P64: 0 | W64: 0
B65: Кордщетка чашечная М14 для УШМ витая сталь d=65 | G65: шт. | H65: 30 | I65: 30 | J65: 220-ВОЛЬТ | M65: 193.2 | N65: 5796 | O65: =10*193.2 -> 1932 | P65: 3864 | Q65: №2122153100012000000000337/14 от 18.01.22 | W65: 3864
B66: Кордщетка чашечная М14 для УШМ витая сталь d=75 | G66: шт. | H66: 30 | I66: 30 | J66: 220-ВОЛЬТ | M66: 211.6 | N66: 6348 | O66: =9*211.6 -> 1904.4 | P66: 4443.6 | Q66: №2122153100012000000000337/14 от 18.01.22 | W66: 4443.6
B67: Вентиляция
B68: Колено ЭРА D125мм 90г пласт белый | D68: 1000366729 | E68: ЭРА | G68: шт. | H68: 1 | I68: 1 | J68: Максидом | M68: 142 | N68: =M68*I68 -> 142 | P68: =N68-O68 -> 142 | X68: =P68 -> 142
B69: Соединитель ЭРА D125мм пласт белый | D69: 1000366731 | E69: ЭРА | G69: шт. | H69: 4 | I69: 4 | J69: Максидом | M69: 54 | N69: 216 | P69: 216 | X69: 216
B70: Соединитель ЭРА 60х204мм пласт белый | D70: 1000366758 | E70: ЭРА | G70: шт. | H70: 2 | I70: 2 | J70: Максидом | M70: 65 | N70: 130 | P70: 130 | X70: 130
B71: Решетка вентиляционная 12,5РКМ D125 алюминиевая c фланцем | D71: 1001003542 | G71: шт. | H71: 1 | I71: 1 | J71: Максидом | M71: 301 | N71: 301 | P71: 301 | X71: 301
B72: Колено разноугл ЭРА 60х204мм 45гр пласт белый | D72: 1000366756 | E72: ЭРА | G72: шт. | H72: 1 | I72: 1 | J72: Максидом | M72: 205 | N72: 205 | P72: 205 | X72: 205
B73: Фланец пластик D100 | D73: 1000775357 | E73: ЭРА | G73: шт. | H73: 8 | I73: 8 | J73: Максидом | M73: 68 | N73: 544 | P73: 544 | X73: 544
B74: Колено угловое ЭРА 60х204/d125мм 90гр пласт белый с фланцем | D74: 1000366763 | E74: ЭРА | G74: шт. | H74: 2 | I74: 2 | J74: Максидом | M74: =147/I74 -> 73.5 | N74: 147 | P74: 147 | X74: 147
B75: Держатель ЭРА 60х204мм пласт белый | D75: 1000366753 | E75: ЭРА | G75: шт. | H75: 6 | I75: 6 | J75: Максидом | M75: 43 | N75: 258 | P75: 258 | X75: 258
B76: Канал круглый ЭРА 100мм 1м | D76: 1000366714 | E76: ЭРА | G76: шт. | H76: 2 | I76: 2 | J76: Максидом | M76: 193 | N76: 386 | P76: 386 | X76: 386
B77: Канал круглый ЭРА 125мм 0,5м | D77: 1000366727 | E77: ЭРА | G77: шт. | H77: 2 | I77: 2 | J77: Максидом | M77: 156 | N77: 312 | P77: 312 | X77: 312
B78: Канал плоский ЭРА 60х204мм 1,5м | D78: 1000366750 | E78: ЭРА | G78: шт. | H78: 2 | I78: 2 | J78: Максидом | M78: 459 | N78: 918 | P78: 918 | X78: 918
B79: Символика
B80: Шильды | G80: компл. | H80: 1 | I80: 1 | J80: ООО "АЛЮМОФОТО" | M80: 10000 | N80: 10000 | P80: =N80-O80 -> 10000 | Y80: =P80 -> 10000
B81: Наклейки (название, порт приписки и т.д.) | G81: компл. | H81: 1 | I81: 1 | J81: Диатон | M81: 2220 | N81: 2220 | P81: 2220 | Y81: 2220
B82: трафарет марки осадок | G82: компл. | H82: 1 | I82: 1 | M82: 2220 | N82: 2220 | P82: 2220 | Y82: 2220
B83: Трафарет для кильблоков | G83: компл. | H83: 1 | I83: 1 | M83: 2220 | N83: 2220 | P83: 2220 | Y83: 2220
B84: Табличка строителя | G84: шт. | H84: 1 | I84: 0 | J84: Алюмофото | M84: 1500 | N84: 0 | P84: 0 | Y84: 0
A85: Σ | B85: ИТОГО | J85: Итого | N85: =SUM(N5:N84) -> 1239660.984 | O85: =SUM(O5:O84) -> 684672.904 | P85: =SUM(P5:P84) -> 554988.08 | W85: =SUM(W5:W84) -> 374561.88 | X85: 3559 | Y85: 176867.2 | Z85: 0 | AA85: 0 | AB85: 0 | AC85: 0 | AD85: 0 | AE85: 0 | AF85: 0 | AG85: 0 | AH85: 0 | AI85: 0
B86: МАКСИМАЛЬНАЯ СУММА | N86: 960000
B87: Перерасход | N87: =N86-N85 -> -279660.984
A89: Подтверждено конструкторами
A90: Заказано
A91: Получено
A92: Задержка
B94: ХХХХХХХХХХ - Новая позиция
B95: Тепловизор - Исключенная позиция

Sheet S2
A2: 11.ЛКМ и вентиляция
A3: Статус | B3: Наименование | C3: Тип | D3: Артикул, марка | E3: Изготовитель | F3: Назначение/ примечание | G3: Ед. изм. | H3: Кол-во на 1 зак. План | I3: Кол-во к закупке | J3: Наименование поставщика | K3: Курс р./ [валюта] | L3: Цена, [валюта]/ ед. | M3: Цена, руб./ ед. | N3: Стоимость, руб. | O3: Оплачено | P3: К оплате | Q3: № и дата счета | R3: Дата оплаты/ срок поставки | S3: Плановая дата поставки | T3: Требуемая дата на складе | U3: Склад дата | V3: Кто заказывает | W3: январь | X3: февраль | Y3: март | Z3: апрель | AA3: май | AB3: июнь | AC3: июль | AD3: август | AE3: сентябрь | AF3: октябрь | AG3: ноябрь | AH3: декабрь | AI3: Служебная колонка
A4: 1 | B4: 2 | C4: 3 | D4: 4 | E4: 5 | F4: 6 | G4: 7 | H4: 8 | I4: 9 | J4: 10 | K4: 11 | L4: 12 | M4: 13 | N4: 14 | O4: 15 | P4: 16 | Q4: 17 | R4: 18 | S4: 19 | T4: 20 | U4: 21 | V4: 22 | W4: 23 | X4: 24 | Y4: 25 | Z4: 26 | AA4: 27 | AB4: 28 | AC4: 29 | AD4: 30 | AE4: 31 | AF4: 32 | AG4: 33 | AH4: 34
B5: Изоляция
B6: ROCKWOOL® SeaRox MA 740 ALU 50x1000x5000 | G6: уп. | H6: 12 | I6: 12 | J6: Талан | M6: 3390 | N6: =M6*I6 -> 40680 | P6: =N6-O6 -> 40680 | W6: =P6 -> 40680
B7: ROCKWOOL® SeaRox SL 740 ALU 50x600x1000 - 8 шт. | G7: уп. | H7: 30 | I7: 30 | J7: Талан | M7: 2528.64 | N7: 75859.2 | P7: =N7-O7 -> 75859.2 | W7: 75859.2
B8: ROCKWOOL® SeaRox SL 620 ALU 30x600x1000 - 8 шт. | G8: уп. | H8: 19 | I8: 19 | J8: Талан | M8: 2528.64 | N8: 48044.16 | P8: 48044.16 | W8: 48044.16
B9: Доставка изоляции RockWool | G9: шт. | H9: 1 | I9: 1 | J9: Талан | M9: 5000 | N9: 5000 | P9: 5000 | W9: 5000
B10: Жидкая изоляция "ТЕПЛОТОР СТАНДАРТ" | G10: л. | H10: 340 | I10: 340 | J10: РиК | M10: =8380.1/20 -> 419.005 | N10: 142461.7 | P10: 142461.7 | W10: 142461.7
B11: цилиндры наливные Rockwool RW 100 32х30 к/ф | G11: шт. | H11: 1 | I11: 0 | J11: Талан | M11: 138.82 | N11: 0 | P11: 0 | W11: 0
B12: цилиндры наливные Rockwool RW 100 48х30 к/ф | G12: м | H12: 1 | I12: 0 | J12: Талан | M12: 187.82 | N12: 0 | P12: 0 | W12: 0
B13: Скотч алюминиевый широкий - 75 мм. | G13: м | H13: 96 | I13: 96 | J13: Гелеон | M13: 288 | N13: 27648 | P13: 27648 | W13: 27648
B14: Гвоздь изоляционный приварной 3*85 стальной омедненный BIMETAL | G14: л. | H14: 4000 | I14: 4000 | J14: СтилТрейд/НЕВАДА | M14: 14.8 | N14: 59200 | O14: =N14 -> 59200 | P14: 0 | Q14: №2 от 10.01.2022 | W14: 0
B15: Шайба Стальная диаметром 38 мм | G15: шт. | H15: 4000 | I15: 4000 | J15: СтилТрейд | M15: 3.5 | N15: 14000 | O15: =N15 -> 14000 | P15: 0 | Q15: №2 от 10.01.2022 | W15: 0
B16: Выполнение работ по монтажу изоляции | G16: шт. | H16: 1 | I16: 1 | J16: НССЗ | X16: =P16 -> 0
B17: Окраска
B18: Penguard HB, Grey | G18: л. | H18: 120 | I18: 120 | J18: Мультиколор | M18: =874.8 -> 874.8 | N18: =M18*I18 -> 104976 | O18: =N18 -> 104976 | P18: =N18-O18 -> 0 | Q18: №МС0155 от 24.01.2022 | W18: =N18-O18 -> 0
B19: Jotamastic 90 RAL 7046 comp A, 14.8л comp B, 4.4л | G19: л. | H19: 37.2 | I19: 37.2 | J19: Мультиколор | M19: =928.8 -> 928.8 | N19: 34551.36 | O19: =N19 -> 34551.36 | P19: 0 | Q19: №МС0155 от 24.01.2022 | W19: =P19 -> 0
B20: Jotun Thinner №7 | G20: л. | H20: 10 | I20: 0 | J20: Мультиколор | M20: =7472.51*1.2/10 -> 896.7012 | N20: 0 | P20: 0 | AB20: =P20 -> 0
B21: Jotun Thinner №10 | G21: л. | H21: 20 | I21: 20 | J21: Мультиколор | M21: 432 | N21: 8640 | O21: 8640 | P21: 0 | Q21: №МС0155 от 24.01.2022 | W21: =P21 -> 0
B22: Jotun Thinner №17 | G22: л. | H22: 60 | I22: 40 | J22: Мультиколор | M22: 432 | N22: 17280 | O22: 17280 | P22: 0 | Q22: №МС0155 от 24.01.2022 | W22: =N22-O22 -> 0
B23: Hardtop НВ RAL 9010 (белый) | G23: л. | H23: 55.26 | I23: 55.26 | J23: Мультиколор | M23: =1814.4 -> 1814.4 | N23: 100263.744 | O23: 100263.744 | P23: 0 | Q23: №МС0155 от 24.01.2022 | W23: =N23-O23 -> 0
B24: Hardtop НВ RAL 9011 (черный) | G24: л. | H24: 1 | I24: 4 | J24: Мультиколор | M24: =(60579.36+15984)*1.2/76.64 -> 1198.8 | N24: 4795.2 | P24: 4795.2 | W24: =N24-O24 -> 4795.2
B25: Hardtop НВ RAL 6021 (фисташковый) | G25: л. | H25: 38.4 | I25: 38.4 | J25: Мультиколор | M25: =1652.4 -> 1652.4 | N25: 63452.16 | O25: 63452.16 | P25: 0 | Q25: №МС0155 от 24.01.2022 | W25: =N25-O25 -> 0
B26: Hardtop НВ RAL 6026 (темно-зеленый) | G26: л. | H26: 38.4 | I26: 30.255 | J26: Мультиколор | M26: =(65051.91+16092)*1.2/60.51 -> 1609.2 | N26: 48686.346 | O26: 48686.346 | P26: 0 | Q26: №МС0155 от 24.01.2022 | W26: =P26 -> 0
B27: Safeguard Uni | G27: л. | H27: 18 | I27: 18 | J27: Мультиколор | M27: 1004.4 | N27: 18079.2 | P27: 18079.2 | Y27: =P27 -> 18079.2
B28: AF SeaForce 90 Black | G28: л. | H28: 20 | I28: 40 | J28: Мультиколор | M28: 3553.2 | N28: 142128 | P28: 142128 | Y28: =P28 -> 142128
B29: Окраска и защита
B30: Корщетка-венчик 20/25 мм | G30: шт. | H30: 340 | I30: 250 | J30: Инфо-тулс | M30: 59 | N30: =M30*I30 -> 14750 | O30: =N30 -> 14750 | P30: 0 | Q30: №185 от 21.12.21 | W30: =P30 -> 0
B31: Растворитель 646 | G31: л. | H31: 350 | I31: 350 | J31: ООО "Эспада" | M31: 91 | N31: 31850 | O31: =N31 -> 31850 | P31: 0 | Q31: №2122153100012000000000337/25 от 24.01.2022 | W31: =P31 -> 0
B32: Воронка фильтрующая 190 мм | G32: шт. | H32: 135 | I32: 135 | J32: Технопродукт Автомотив | M32: 3.41 | N32: 460.35 | O32: =N32 -> 460.35 | P32: 0 | Q32: №3647 от 20.12.21 | W32: 0
B33: Гофрокартон 2-х слойный | G33: пог.м | H33: 150 | I33: 150 | J33: Картон Плюс | M33: =4976.1/150 -> 33.174 | N33: 4976.1 | P33: 4976.1 | W33: 4976.1
B34: Перчатки нитриловые RoxelPro RoxOne, Чёрные, размер L | G34: уп. | H34: 10 | I34: 10 | J34: Колор-Эксперт | M34: 2084.11 | N34: 20841.1 | O34: =N34 -> 20841.1 | P34: 0 | Q34: №3647 от 20.12.21 | W34: 0
B35: Емкость смесительная 1550 мл зм | G35: шт. | H35: 10 | I35: 10 | J35: Технопродукт Автомотив | M35: 26.4 | N35: 264 | O35: =N35 -> 264 | P35: 0 | Q35: №3647 от 20.12.21 | W35: 0
B36: Кисть флейц. 1" Стандарт | G36: шт. | H36: 0 | I36: 0 | J36: Максидом | M36: =70 -> 70 | N36: 0 | P36: 0 | W36: 0
B37: Кисть флейц. 2" Стандарт | G37: шт. | H37: 12 | I37: 12 | J37: Максидом | M37: =1049.28/I37 -> 87.44 | N37: 1049.28 | P37: 1049.28 | W37: 1049.28
B38: Лак акриловый матовый 2К Мобихел 47056422 (1 л.) | G38: л. | H38: 8 | I38: 8 | J38: Колор-Эксперт | M38: 1712.77 | N38: 13702.16 | O38: =N38 -> 13702.16 | P38: 0 | Q38: №3647 от 20.12.21 | W38: 0
B39: Отвердитель 2К 8800 Мобихел (0,5л) | G39: шт. | H39: 8 | I39: 8 | J39: Колор-Эксперт | M39: 554.46 | N39: 4435.68 | O39: 4435.68 | P39: 0 | Q39: №3647 от 20.12.21 | W39: 0
B40: Разбавитель 2К 2100 Мобихел (0,5л) | G40: шт. | H40: 2 | I40: 2 | J40: Колор-Эксперт | M40: 454.81 | N40: 909.62 | O40: 909.62 | P40: 0 | Q40: №3647 от 20.12.21 | W40: 0
B41: Лента малярная 48 мм*40м RoxelPor коричневая | G41: шт. | H41: 140 | I41: 140 | J41: Технопродукт Автомотив/ГрэйнХаус | M41: 127.76 | N41: 17886.4 | O41: 17886.4 | P41: 0 | Q41: №3647 от 20.12.21 | W41: 0
B42: Лента маскирующая 471 6мм | G42: шт. | H42: 6 | I42: 6 | J42: Технопродукт Автомотив/ГрэйнХаус | M42: 555.31 | N42: 3331.86 | O42: =N42 -> 3331.86 | P42: 0 | Q42: №3647 от 20.12.21 | W42: 0
B43: Лента стрейч 0,45*20 мкм 300м | G43: шт. | H43: 4 | I43: 2 | J43: Технопродукт Автомотив/ГрэйнХаус | M43: =1484.52/2 -> 742.26 | N43: 1484.52 | P43: 1484.52 | W43: 1484.52
B44: Патрон - фильтр А от органических паров 6051 | G44: шт. | H44: 60 | I44: 60 | J44: Технопродукт Автомотив/ГрэйнХаус | M44: 481.23 | N44: 28873.8 | O44: =N44 -> 28873.8 | P44: 0 | Q44: №3647 от 20.12.21 | W44: 0
B45: Держатель для предфильтра 5911 | G45: шт. | H45: 6 | I45: 0 | J45: Технопродукт Автомотив/ГрэйнХаус | M45: 65 | N45: 0 | P45: 0 | W45: 0
B46: Пред-фильтр от пыли | G46: шт. | H46: 60 | I46: 60 | J46: Технопродукт Автомотив/ГрэйнХаус | M46: 114.26 | N46: 6855.6 | P46: 6855.6 | W46: 6855.6
B47: Перчатки резиновые КЩС Тип 1 L-U-03 (аналог SF-S-06) р. L | G47: шт. | H47: 50 | I47: 50 | J47: ТД Форт | M47: 81.7 | N47: 4085 | P47: 4085 | W47: 4085
B48: Плёнка защитная для полных масок 6000 | G48: шт. | H48: 15 | I48: 0 | J48: Технопродукт Автомотив | M48: 78.2 | N48: 0 | P48: 0 | W48: 0
B49: Ролик 100мм | G49: шт. | H49: 40 | I49: 40 | J49: Максидом | M49: =1451.2/I49 -> 36.28 | N49: 1451.2 | P49: 1451.2 | W49: 1451.2
B50: Валик Велюр 100 мм | G50: шт. | H50: 4 | I50: 0 | J50: Максидом | M50: =97 -> 97 | N50: 0 | P50: 0 | W50: 0
B51: Скотч брайт mirlon Р320, (10,5 м.кв) | G51: шт. | H51: 60 | I51: 60 | J51: Технопродукт Автомотив | M51: 85.17 | N51: 5110.2 | O51: =N51 -> 5110.2 | P51: 0 | Q51: №3647 от 20.12.21 | W51: 0
B52: Скотч упаковочный 50/100мм | G52: шт. | H52: 10 | I52: 10 | J52: ТД Форт | M52: 0 | N52: 0 | P52: 0 | W52: 0
B53: Плёнка для покраски 4х150м 9мк | G53: рул | H53: 6 | I53: 6 | J53: Империя цвета | M53: 2554.25 | N53: 15325.5 | O53: =N53 -> 15325.5 | P53: 0 | Q53: №3647 от 20.12.21 | W53: 0
B54: Пена монтажная putech проф. 850 мл | G54: шт. | H54: 6 | I54: 0 | J54: Стройопторг | M54: =1836.12/6 -> 306.02 | N54: 0 | P54: 0 | W54: 0
B55: Очиститель монтажной пены | G55: шт. | H55: 1 | I55: 0 | M55: 166.46 | N55: 0 | P55: 0 | W55: 0
B56: круг шлифовальный ф150 Hanko(Р=240) | G56: шт. | H56: 500 | I56: 500 | J56: Технопродукт Автомотив/ГрэйнХаус | M56: 17.72 | N56: 8860 | O56: =N56 -> 8860 | P56: 0 | Q56: №83 от 18.01.2022 | W56: 0
B57: круг шлифовальный ф125Hanko(Р=40) | G57: шт. | H57: 600 | I57: 600 | J57: Технопродукт Автомотив/ГрэйнХаус | M57: 20.38 | N57: 12228 | O57: =N57 -> 12228 | P57: 0 | Q57: №83 от 18.01.2022 | W57: 0
B58: круг шлифовальный ф150 Hanko(Р=320) | G58: шт. | H58: 100 | I58: 100 | J58: Технопродукт Автомотив/ГрэйнХаус | M58: 16.43 | N58: 1643 | P58: 1643 | W58: 1643
B59: подошва для УШМ | G59: шт. | H59: 12 | I59: 12 | M59: 212.4 | N59: 2548.8 | P59: 2548.8 | W59: 2548.8
B60: Полумаска | G60: шт. | H60: 2 | I60: 1 | M60: 2551.42 | N60: 2551.42 | O60: =N60 -> 2551.42 | P60: 0 | Q60: №3647 от 20.12.21 | W60: 0
B61: Комбинезон малярный JPC95g (2 шт. - М, 2 шт. -XXL) | G61: шт. | H61: 6 | I61: 3 | J61: Технопродукт Автомотив/ГрэйнХаус | M61: 803.16 | N61: 2409.48 | P61: 2409.48 | W61: 2409.48
B62: Комбинезон малярный JPC95g ( М) | G62: шт. | H62: 5 | I62: 5 | J62: Технопродукт Автомотив/ГрэйнХаус | M62: 742.83 | N62: 3714.15 | O62: =N62 -> 3714.15 | P62: 0 | Q62: №3647 от 20.12.21 | W62: 0
B63: Плёнка п/э техническая 100 мкм | G63: м пог | H63: 200 | I63: 200 | J63: ЗАО "Пластекс" | M63: =56.72 -> 56.72 | N63: 11344 | P63: 11344 | W63: 11344
B64: Плёнка п/э техническая защитная самоклеющаяся | G64: кпл | H64: 1 | I64: 0 | M64: 21 | N64: 0 | P64: 0 | W64: 0
B65: Кордщетка чашечная М14 для УШМ витая сталь d=65 | G65: шт. | H65: 30 | I65: 30 | J65: 220-ВОЛЬТ | M65: 193.2 | N65: 5796 | O65: =10*193.2 -> 1932 | P65: 3864 | Q65: №2122153100012000000000337/14 от 18.01.22 | W65: 3864
B66: Кордщетка чашечная М14 для УШМ витая сталь d=75 | G66: шт. | H66: 30 | I66: 30 | J66: 220-ВОЛЬТ | M66: 211.6 | N66: 6348 | O66: =9*211.6 -> 1904.4 | P66: 4443.6 | Q66: №2122153100012000000000337/14 от 18.01.22 | W66: 4443.6
B67: Вентиляция
B68: Колено ЭРА D125мм 90г пласт белый | D68: 1000366729 | E68: ЭРА | G68: шт. | H68: 1 | I68: 1 | J68: Максидом | M68: 142 | N68: =M68*I68 -> 142 | P68: =N68-O68 -> 142 | X68: =P68 -> 142
B69: Соединитель ЭРА D125мм пласт белый | D69: 1000366731 | E69: ЭРА | G69: шт. | H69: 4 | I69: 4 | J69: Максидом | M69: 54 | N69: 216 | P69: 216 | X69: 216
B70: Соединитель ЭРА 60х204мм пласт белый | D70: 1000366758 | E70: ЭРА | G70: шт. | H70: 2 | I70: 2 | J70: Максидом | M70: 65 | N70: 130 | P70: 130 | X70: 130
B71: Решетка вентиляционная 12,5РКМ D125 алюминиевая c фланцем | D71: 1001003542 | G71: шт. | H71: 1 | I71: 1 | J71: Максидом | M71: 301 | N71: 301 | P71: 301 | X71: 301
B72: Колено разноугл ЭРА 60х204мм 45гр пласт белый | D72: 1000366756 | E72: ЭРА | G72: шт. | H72: 1 | I72: 1 | J72: Максидом | M72: 205 | N72: 205 | P72: 205 | X72: 205
B73: Фланец пластик D100 | D73: 1000775357 | E73: ЭРА | G73: шт. | H73: 8 | I73: 8 | J73: Максидом | M73: 68 | N73: 544 | P73: 544 | X73: 544
B74: Колено угловое ЭРА 60х204/d125мм 90гр пласт белый с фланцем | D74: 1000366763 | E74: ЭРА | G74: шт. | H74: 2 | I74: 2 | J74: Максидом | M74: =147/I74 -> 73.5 | N74: 147 | P74: 147 | X74: 147
B75: Держатель ЭРА 60х204мм пласт белый | D75: 1000366753 | E75: ЭРА | G75: шт. | H75: 6 | I75: 6 | J75: Максидом | M75: 43 | N75: 258 | P75: 258 | X75: 258
B76: Канал круглый ЭРА 100мм 1м | D76: 1000366714 | E76: ЭРА | G76: шт. | H76: 2 | I76: 2 | J76: Максидом | M76: 193 | N76: 386 | P76: 386 | X76: 386
B77: Канал круглый ЭРА 125мм 0,5м | D77: 1000366727 | E77: ЭРА | G77: шт. | H77: 2 | I77: 2 | J77: Максидом | M77: 156 | N77: 312 | P77: 312 | X77: 312
B78: Канал плоский ЭРА 60х204мм 1,5м | D78: 1000366750 | E78: ЭРА | G78: шт. | H78: 2 | I78: 2 | J78: Максидом | M78: 459 | N78: 918 | P78: 918 | X78: 918
B79: Символика
B80: Шильды | G80: компл. | H80: 1 | I80: 1 | J80: ООО "АЛЮМОФОТО" | M80: 10000 | N80: 10000 | P80: =N80-O80 -> 10000 | Y80: =P80 -> 10000
B81: Наклейки (название, порт приписки и т.д.) | G81: компл. | H81: 1 | I81: 1 | J81: Диатон | M81: 2220 | N81: 2220 | P81: 2220 | Y81: 2220
B82: трафарет марки осадок | G82: компл. | H82: 1 | I82: 1 | M82: 2220 | N82: 2220 | P82: 2220 | Y82: 2220
B83: Трафарет для кильблоков | G83: компл. | H83: 1 | I83: 1 | M83: 2220 | N83: 2220 | P83: 2220 | Y83: 2220
B84: Табличка строителя | G84: шт. | H84: 1 | I84: 0 | J84: Алюмофото | M84: 1500 | N84: 0 | P84: 0 | Y84: 0
A85: Σ | B85: ИТОГО | J85: Итого | N85: =SUM(N5:N84) -> 1211049.29 | O85: =SUM(O5:O84) -> 639980.25 | P85: =SUM(P5:P84) -> 571069.04 | W85: =SUM(W5:W84) -> 390642.84 | X85: 3559 | Y85: 176867.2 | Z85: 0 | AA85: 0 | AB85: 0 | AC85: 0 | AD85: 0 | AE85: 0 | AF85: 0 | AG85: 0 | AH85: 0 | AI85: 0
B86: МАКСИМАЛЬНАЯ СУММА | N86: 960000
B87: Перерасход | N87: =N86-N85 -> -251049.29
A89: Подтверждено конструкторами
A90: Заказано
A91: Получено
A92: Задержка
B94: ХХХХХХХХХХ - Новая позиция
B95: Тепловизор - Исключенная позиция

Sheet S3 (hidden)
